fUST/lending_fUST_20250227
["ID","MTS","AMOUNT","RATE_DAILY","PERIOD"]
[354746610,1740664238162,-1983.63260266,0.0004699,2]
[354746611,1740664238173,-205.65590836,0.000479,11]
[354746612,1740664238182,-5000.0,0.00047945,10]
[354746613,1740664238192,-160.0,0.00047954,2]
[354746614,1740664238202,-1225.9420342,0.00047967,2]
[354746615,1740664238211,-10000.0,0.00048219,10]
[354746616,1740664238221,-15000.0,0.00048493,10]
[354746617,1740664238231,-9899.2,0.00048767,10]
[354746618,1740664238243,-2452.95103659,0.00048899,28]
[354746619,1740664238253,-18248.8,0.00048999,120]
[354746620,1740664238263,-100000.0,0.00049,2]
[354746621,1740664238272,-738.57034036,0.00049121,2]
[354746622,1740664238281,-205.65590834,0.00049221,11]
[354746623,1740664238291,-738.57034033,0.00049282,2]
[354746624,1740664238300,-474.63354611,0.00049292,2]
[354746625,1740664238310,-500.0,0.00049315,120]
[354746626,1740664238319,-501.38,0.00049315,120]
[354746627,1740664238328,-500.0,0.00049315,120]
[354746628,1740664238338,-497.75561076,0.00049315,120]
[354746629,1740664238348,-1421.84,0.00049315,120]
[354746630,1740664238357,-500.0,0.00049315,120]
[354746631,1740664238367,-500.0,0.00049315,120]
[354746632,1740664238377,-500.0,0.00049315,120]
[354746633,1740664238387,-586.12,0.00049315,120]
[354746634,1740664238397,-159.09,0.00049315,120]
[354746635,1740664238406,-546.59,0.00049315,120]
[354746636,1740664238416,-500.0,0.00049315,120]
[354746637,1740664238425,-500.0,0.00049315,120]
[354746638,1740664238435,-319.49,0.00049315,120]
[354746639,1740664238444,-295.66,0.00049315,120]
[354746640,1740664238454,-500.0,0.00049315,120]
[354746641,1740664238463,-500.0,0.00049315,120]
[354746642,1740664238472,-500.0,0.00049315,120]
[354746643,1740664238482,-500.0,0.00049315,120]
[354746644,1740664238494,-500.0,0.00049315,120]
[354746645,1740664238503,-500.0,0.00049315,120]
[354746646,1740664238514,-500.0,0.00049315,120]
[354746647,1740664238523,-500.0,0.00049315,120]
[354746648,1740664238533,-500.0,0.00049315,120]
[354746649,1740664238543,-500.0,0.00049315,120]
[354746650,1740664238552,-433.24598367,0.00049315,120]
[354746651,1740664238562,-500.0,0.00049315,120]
[354746652,1740664238572,-500.0,0.00049315,120]
[354746653,1740664238581,-500.0,0.00049315,120]
[354746654,1740664238591,-417.32,0.00049315,120]
[354746655,1740664238601,-500.0,0.00049315,120]
[354746656,1740664238611,-75167.17,0.00049315,7]
[354746657,1740664238621,-501.6194,0.00049315,120]
[354746658,1740664238631,-527.56,0.00049315,120]
[354746659,1740664238641,-6084.84,0.00049315,120]
[354746660,1740664238651,-500.0,0.00049315,120]
[354746661,1740664238660,-862.45,0.00049315,120]
[354746662,1740664238670,-587.8,0.00049315,120]
[354746663,1740664238679,-500.0,0.00049315,120]
[354746664,1740664238689,-500.0,0.00049315,120]
[354746665,1740664238699,-1970.2,0.00049315,120]
[354746666,1740664238709,-500.0,0.00049315,120]
[354746667,1740664238718,-500.0,0.00049315,120]
[354746668,1740664238728,-500.0,0.00049315,120]
[354746669,1740664238738,-2324.7,0.00049315,120]
[354746670,1740664238754,-904.92,0.00049315,120]
[354746671,1740664238763,-500.0,0.00049315,120]
[354746672,1740664238773,-500.0,0.00049315,120]
[354746673,1740664238783,-500.0,0.00049315,120]
[354746674,1740664238793,-1516.7,0.00049315,120]
[354746675,1740664238803,-500.0,0.00049315,120]
[354746676,1740664238816,-500.0,0.00049315,120]
[354746677,1740664238828,-2422.59,0.00049315,120]
[354746678,1740664238839,-500.0,0.00049315,120]
[354746679,1740664238849,-696.65,0.00049315,120]
[354746680,1740664238859,-500.0,0.00049315,120]
[354746681,1740664238869,-500.0,0.00049315,120]
[354746682,1740664238878,-500.0,0.00049315,120]
[354746683,1740664238888,-898.12,0.00049315,120]
[354746684,1740664238900,-500.0,0.00049315,120]
[354746685,1740664238909,-500.0,0.00049315,120]
[354746686,1740664238918,-500.0,0.00049315,120]
[354746687,1740664238928,-500.0,0.00049315,120]
[354746688,1740664238938,-500.0,0.00049315,120]
[354746689,1740664238947,-500.0,0.00049315,120]
[354746690,1740664238957,-500.0,0.00049315,120]
[354746691,1740664238966,-500.0,0.00049315,120]
[354746692,1740664238976,-500.0,0.00049315,120]
[354746693,1740664238986,-2000.0,0.00049315,120]
[354746694,1740664238999,-500.0,0.00049315,120]
[354746695,1740664239009,-500.0,0.00049315,120]
[354746696,1740664239019,-500.0,0.00049315,120]
[354746697,1740664239028,-875.0,0.00049315,2]
[354746698,1740664239038,-500.0,0.00049315,120]
[354746699,1740664239049,-3550.27,0.00049315,6]
[354746700,1740664239058,-712.67,0.00049315,120]
[354746701,1740664239068,-500.0,0.00049315,120]
[354746702,1740664239078,-500.0,0.00049315,120]
[354746703,1740664239087,-6851.14,0.00049315,120]
[354746704,1740664239096,-500.0,0.00049315,120]
[354746705,1740664239109,-500.0,0.00049315,120]
[354746706,1740664239119,-500.0,0.00049315,120]
[354746707,1740664239130,-500.0,0.00049315,2]
[354746708,1740664239140,-1875.0,0.00049315,120]
[354746709,1740664239150,-500.0,0.00049315,120]
[354746710,1740664239162,-500.0,0.00049315,15]
[354746711,1740664239173,-2365.65,0.00049315,120]
[354746712,1740664239185,-500.0,0.00049315,120]
[354746713,1740664239194,-500.0,0.00049373,10]
[354746714,1740664239204,-584.93169002,0.00049373,10]
[354746715,1740664239214,-500.0,0.00049373,10]
[354746716,1740664239224,-500.0,0.00049373,10]
[354746717,1740664239235,-128768.71,0.000494,30]
[354746719,1740664239250,-3285.84,0.000494,30]
[354746720,1740664239260,-165.17,0.000494,30]
[354746721,1740664239269,-1834.58,0.000494,30]
[354746722,1740664239279,-738.57034033,0.00049442,2]
[354746723,1740664239289,-285.65640075,0.00049587,120]
[354746724,1740664239299,-500.0,0.00049587,2]
[354746725,1740664239309,-500.0,0.00049587,120]
[354746727,1740664239320,-500.0,0.00049587,2]
[354746729,1740664239330,-242.20417577,0.00049587,120]
[354746731,1740664239340,-500.0,0.00049587,2]
[354746732,1740664239350,-500.0,0.00049587,2]
[354746734,1740664239361,-500.0,0.00049587,2]
[354746736,1740664239370,-500.0,0.00049587,2]
[354746738,1740664239380,-500.0,0.00049587,2]
[354746739,1740664239390,-500.0,0.00049587,2]
[354746740,1740664239400,-500.0,0.00049587,2]
[354746741,1740664239411,-453.37379751,0.00049587,2]
[354746742,1740664239421,-500.0,0.00049587,2]
[354746743,1740664239431,-500.0,0.00049587,2]
[354746744,1740664239440,-500.0,0.00049587,2]
[354746745,1740664239450,-500.0,0.00049587,2]
[354746746,1740664239459,-500.0,0.00049587,2]
[354746747,1740664239469,-500.0,0.00049587,2]
[354746748,1740664239479,-500.0,0.00049587,2]
[354746749,1740664239489,-569.87075183,0.00049589,120]
[354746750,1740664239506,-501.38,0.00049589,120]
[354746751,1740664239516,-500.0,0.00049589,120]
[354746752,1740664239526,-1421.84,0.00049589,120]
[354746753,1740664239536,-500.0,0.00049589,120]
[354746754,1740664239546,-500.0,0.00049589,120]
[354746755,1740664239556,-500.0,0.00049589,120]
[354746756,1740664239566,-500.0,0.00049589,120]
[354746757,1740664239576,-507.91,0.00049589,120]
[354746758,1740664239585,-484.64,0.00049589,120]
[354746759,1740664239595,-500.0,0.00049589,120]
[354746760,1740664239604,-500.0,0.00049589,120]
[354746761,1740664239614,-237.88,0.00049589,120]
[354746762,1740664239624,-500.0,0.00049589,120]
[354746763,1740664239633,-500.0,0.00049589,120]
[354746764,1740664239643,-500.0,0.00049589,120]
[354746765,1740664239653,-500.0,0.00049589,120]
[354746766,1740664239662,-500.0,0.00049589,120]
[354746767,1740664239672,-500.0,0.00049589,120]
[354746768,1740664239681,-500.0,0.00049589,120]
[354746769,1740664239691,-500.0,0.00049589,120]
[354746770,1740664239700,-500.0,0.00049589,120]
[354746771,1740664239709,-75167.17,0.00049589,7]
[354746772,1740664239719,-527.56,0.00049589,120]
[354746774,1740664239729,-6084.84,0.00049589,120]
[354746776,1740664239739,-862.45,0.00049589,120]
[354746778,1740664239752,-500.0,0.00049589,120]
[354746779,1740664239760,-500.0,0.00049589,120]
[354746780,1740664239770,-1970.2,0.00049589,120]
[354746781,1740664239779,-500.0,0.00049589,120]
[354746783,1740664239788,-500.0,0.00049589,120]
[354746785,1740664239797,-500.0,0.00049589,120]
[354746786,1740664239805,-2324.7,0.00049589,120]
[354746787,1740664239815,-904.92,0.00049589,120]
[354746788,1740664239825,-500.0,0.00049589,120]
[354746789,1740664239837,-500.0,0.00049589,120]
[354746791,1740664239846,-500.0,0.00049589,120]
[354746792,1740664239856,-1516.7,0.00049589,120]
[354746793,1740664239866,-500.0,0.00049589,120]
[354746794,1740664239876,-2422.59,0.00049589,120]
[354746795,1740664239885,-696.65,0.00049589,120]
[354746796,1740664239895,-500.0,0.00049589,120]
[354746797,1740664239905,-500.0,0.00049589,120]
[354746798,1740664239917,-500.0,0.00049589,120]
[354746799,1740664239927,-898.12,0.00049589,120]
[354746800,1740664239936,-500.0,0.00049589,120]
[354746801,1740664239946,-500.0,0.00049589,120]
[354746802,1740664239956,-500.0,0.00049589,120]
[354746803,1740664239965,-500.0,0.00049589,120]
[354746804,1740664239975,-500.0,0.00049589,120]
[354746805,1740664239984,-500.0,0.00049589,120]
[354746806,1740664239997,-500.0,0.00049589,120]
[354746807,1740664240007,-500.0,0.00049589,120]
[354746808,1740664240017,-2000.0,0.00049589,120]
[354746809,1740664240027,-500.0,0.00049589,120]
[354746810,1740664240037,-875.0,0.00049589,2]
[354746811,1740664240046,-500.0,0.00049589,120]
[354746812,1740664240056,-3550.27,0.00049589,6]
[354746813,1740664240066,-712.67,0.00049589,120]
[354746814,1740664240075,-6851.14,0.00049589,120]
[354746815,1740664240084,-500.0,0.00049589,120]
[354746816,1740664240094,-500.0,0.00049589,2]
[354746817,1740664240103,-1875.0,0.00049589,120]
[354746818,1740664240113,-500.00096551,0.00049589,120]
[354746819,1740664240122,-1885.888821,0.00049589,120]
[354746820,1740664240132,-1885.888821,0.00049589,120]
[354746821,1740664240141,-2365.65,0.00049589,120]
[354746822,1740664240151,-434.63,0.000496,30]
[354746823,1740664240161,-8666.6,0.00049763,120]
[354746824,1740664240170,-501.38,0.00049863,120]
[354746825,1740664240180,-500.0,0.00049863,120]
[354746826,1740664240189,-1421.84,0.00049863,120]
[354746827,1740664240198,-500.0,0.00049863,120]
[354746828,1740664240208,-500.0,0.00049863,120]
[354746829,1740664240218,-500.0,0.00049863,120]
[354746830,1740664240228,-500.0,0.00049863,120]
[354746831,1740664240238,-500.0,0.00049863,120]
[354746832,1740664240251,-252.73,0.00049863,120]
[354746833,1740664240261,-500.0,0.00049863,120]
[354746834,1740664240271,-500.0,0.00049863,120]
[354746835,1740664240280,-500.0,0.00049863,120]
[354746836,1740664240291,-476.84,0.00049863,120]
[354746837,1740664240301,-500.0,0.00049863,120]
[354746838,1740664240313,-500.0,0.00049863,120]
[354746839,1740664240324,-75167.17,0.00049863,7]
[354746840,1740664240336,-527.56,0.00049863,120]
[354746841,1740664240346,-6084.84,0.00049863,120]
[354746842,1740664240356,-862.45,0.00049863,120]
[354746843,1740664240366,-500.0,0.00049863,120]
[354746844,1740664240376,-500.0,0.00049863,120]
[354746845,1740664240385,-500.0,0.00049863,120]
[354746846,1740664240395,-1970.2,0.00049863,120]
[354746847,1740664240405,-500.0,0.00049863,120]
[354746848,1740664240415,-500.0,0.00049863,120]
[354746849,1740664240424,-2324.7,0.00049863,120]
[354746850,1740664240433,-904.92,0.00049863,120]
[354746851,1740664240443,-171.58,0.00049863,120]
[354746852,1740664240453,-500.0,0.00049863,120]
[354746853,1740664240462,-500.0,0.00049863,120]
[354746854,1740664240471,-1516.7,0.00049863,120]
[354746855,1740664240480,-500.0,0.00049863,120]
[354746856,1740664240490,-2422.59,0.00049863,120]
[354746857,1740664240503,-696.65,0.00049863,120]
[354746858,1740664240513,-585.39,0.00049863,120]
[354746859,1740664240522,-570.67552311,0.00049863,120]
[354746860,1740664240531,-500.0,0.00049863,120]
[354746861,1740664240541,-898.12,0.00049863,120]
[354746862,1740664240551,-500.0,0.00049863,120]
[354746863,1740664240561,-500.0,0.00049863,120]
[354746864,1740664240571,-500.0,0.00049863,120]
[354746865,1740664240580,-295.69,0.00049863,120]
[354746866,1740664240589,-521.52,0.00049863,120]
[354746867,1740664240599,-500.0,0.00049863,120]
[354746868,1740664240608,-500.0,0.00049863,120]
[354746869,1740664240617,-500.0,0.00049863,120]
[354746870,1740664240627,-2000.0,0.00049863,120]
[354746871,1740664240636,-500.0,0.00049863,120]
[354746872,1740664240645,-875.0,0.00049863,2]
[354746873,1740664240654,-500.0,0.00049863,120]
[354746874,1740664240664,-3550.27,0.00049863,6]
[354746875,1740664240674,-712.67,0.00049863,120]
[354746876,1740664240683,-6851.14,0.00049863,120]
[354746877,1740664240692,-500.0,0.00049863,120]
[354746878,1740664240702,-500.0,0.00049863,2]
[354746879,1740664240711,-1875.0,0.00049863,120]
[354746880,1740664240720,-1885.888821,0.00049863,120]
[354746881,1740664240729,-1885.888821,0.00049863,120]
[354746882,1740664240739,-2365.65,0.00049863,120]
[354746883,1740664240751,-500.0,0.00049873,10]
[354746884,1740664240761,-500.0,0.00049873,10]
[354746885,1740664240771,-500.0,0.00049873,10]
[354746886,1740664240780,-500.0,0.00049873,10]
[354746887,1740664240789,-500.0,0.00049873,10]
[354746888,1740664240799,-656.86,0.000499,30]
[354746889,1740664240809,-500.0,0.00049937,5]
[354746890,1740664240823,-500.0,0.00049937,7]
[354746891,1740664240833,-160.6788572,0.00050037,4]
[354746892,1740664240843,-502.2636906,0.00050076,2]
[354746893,1740664240853,-501.38,0.00050136,120]
[354746894,1740664240863,-327.28,0.00050136,120]
[354746895,1740664240872,-1421.84,0.00050136,120]
[354746896,1740664240883,-500.0,0.00050136,120]
[354746897,1740664240893,-500.0,0.00050136,120]
[354746898,1740664240903,-500.0,0.00050136,120]
[354746899,1740664240913,-500.0,0.00050136,120]
[354746900,1740664240924,-500.0,0.00050136,120]
[354746901,1740664240934,-500.0,0.00050136,120]
[354746902,1740664240944,-500.0,0.00050136,120]
[354746903,1740664240955,-500.0,0.00050136,120]
[354746904,1740664240964,-500.0,0.00050136,120]
[354746905,1740664240974,-500.0,0.00050136,120]
[354746906,1740664240984,-18521.90420903,0.00050136,7]
[354746932,1740664244931,-151.0,0.00049589,120]
[354746933,1740664244941,-738.57034033,0.00049603,2]
[354746934,1740664244950,-738.57034033,0.00049763,2]
[354746935,1740664244959,-151.0,0.00049863,120]
[354746936,1740664244969,-56645.26579097,0.00050136,7]
[354746937,1740664244978,-527.56,0.00050136,120]
[354746938,1740664244987,-6084.84,0.00050136,120]
[354746939,1740664244999,-862.45,0.00050136,120]
[354746940,1740664245009,-540.4,0.00050136,120]
[354746941,1740664245019,-500.0,0.00050136,120]
[354746942,1740664245029,-500.0,0.00050136,120]
[354746943,1740664245038,-1970.2,0.00050136,120]
[354746944,1740664245048,-500.0,0.00050136,120]
[354746945,1740664245058,-500.0,0.00050136,120]
[354746946,1740664245067,-2324.7,0.00050136,120]
[354746947,1740664245078,-904.92,0.00050136,120]
[354746948,1740664245088,-500.0,0.00050136,120]
[354746949,1740664245098,-500.0,0.00050136,120]
[354746950,1740664245108,-1516.7,0.00050136,120]
[354746951,1740664245118,-500.0,0.00050136,120]
[354746952,1740664245127,-2422.59,0.00050136,120]
[354746953,1740664245136,-696.65,0.00050136,120]
[354746954,1740664245146,-500.0,0.00050136,120]
[354746955,1740664245155,-898.12,0.00050136,120]
[354746956,1740664245165,-500.0,0.00050136,120]
[354746957,1740664245174,-500.0,0.00050136,120]
[354746958,1740664245184,-612.71,0.00050136,120]
[354746959,1740664245194,-227.77,0.00050136,120]
[354746961,1740664245203,-500.0,0.00050136,120]
[354746963,1740664245212,-500.0,0.00050136,120]
[354746964,1740664245221,-1938.17,0.00050136,120]
[354746965,1740664245231,-500.0,0.00050136,120]
[354746966,1740664245240,-875.0,0.00050136,2]
[354746967,1740664245252,-500.0,0.00050136,120]
[354746968,1740664245262,-3550.27,0.00050136,6]
[354746969,1740664245271,-712.67,0.00050136,120]
[354746970,1740664245280,-6851.14,0.00050136,120]
[354746971,1740664245290,-500.0,0.00050136,120]
[354746972,1740664245299,-524.62682534,0.00050136,2]
[354746973,1740664245309,-1875.0,0.00050136,120]
[354746974,1740664245318,-1885.888821,0.00050136,120]
[354746975,1740664245327,-1885.888821,0.00050136,120]
[354746976,1740664245337,-2365.65,0.00050136,120]
[354746977,1740664245347,-151.0,0.00050136,120]
[354746978,1740664245357,-500.0,0.0005031,7]
[354746979,1740664245366,-500.0,0.0005031,10]
[354746980,1740664245375,-500.0,0.0005031,10]
[354746981,1740664245386,-501.38,0.0005041,120]
[354746982,1740664245395,-1421.84,0.0005041,120]
[354746983,1740664245405,-500.0,0.0005041,120]
[354746984,1740664245415,-500.0,0.0005041,120]
[354746985,1740664245424,-500.0,0.0005041,120]
[354746987,1740664245434,-500.0,0.0005041,120]
[354746989,1740664245443,-500.0,0.0005041,120]
[354746990,1740664245453,-500.0,0.0005041,120]
[354746991,1740664245463,-500.0,0.0005041,120]
[354746992,1740664245473,-500.0,0.0005041,120]
[354746993,1740664245482,-500.0,0.0005041,120]
[354746994,1740664245492,-500.0,0.0005041,120]
[354746995,1740664245505,-75167.17,0.0005041,7]
[354746996,1740664245515,-527.56,0.0005041,120]
[354746997,1740664245525,-6084.84,0.0005041,120]
[354746998,1740664245534,-862.45,0.0005041,120]
[354746999,1740664245544,-500.0,0.0005041,120]
[354747000,1740664245554,-500.0,0.0005041,120]
[354747001,1740664245564,-1970.2,0.0005041,120]
[354747002,1740664245574,-500.0,0.0005041,120]
[354747004,1740664245585,-500.0,0.0005041,120]
[354747006,1740664245595,-2324.7,0.0005041,120]
[354747008,1740664245605,-904.92,0.0005041,120]
[354747009,1740664245616,-500.0,0.0005041,120]
[354747010,1740664245628,-500.0,0.0005041,120]
[354747011,1740664245639,-1516.7,0.0005041,120]
[354747012,1740664245649,-500.0,0.0005041,120]
[354747013,1740664245660,-2422.59,0.0005041,120]
[354747014,1740664245671,-696.65,0.0005041,120]
[354747016,1740664245681,-500.0,0.0005041,120]
[354747018,1740664245691,-898.12,0.0005041,120]
[354747020,1740664245702,-500.0,0.0005041,120]
[354747021,1740664245712,-296.04,0.0005041,120]
[354747023,1740664245722,-500.0,0.0005041,120]
[354747025,1740664245731,-500.0,0.0005041,120]
[354747026,1740664245741,-500.0,0.0005041,120]
[354747027,1740664245758,-875.0,0.0005041,2]
[354747028,1740664245767,-500.0,0.0005041,120]
[354747029,1740664245777,-3550.27,0.0005041,6]
[354747030,1740664245786,-712.67,0.0005041,120]
[354747031,1740664245796,-6851.14,0.0005041,120]
[354747032,1740664245806,-500.0,0.0005041,120]
[354747033,1740664245816,-1875.0,0.0005041,120]
[354747034,1740664245826,-1885.888821,0.0005041,120]
[354747036,1740664245836,-1885.888821,0.0005041,120]
[354747038,1740664245848,-2365.65,0.0005041,120]
[354747040,1740664245859,-151.0,0.0005041,120]
[354747042,1740664245868,-205.65590834,0.00050543,11]
[354747043,1740664245878,-327.28046194,0.00050683,120]
[354747045,1740664245887,-246.77035047,0.00050683,31]
[354747047,1740664245897,-501.38,0.00050684,120]
[354747048,1740664245907,-1421.84,0.00050684,120]
[354747049,1740664245917,-500.0,0.00050684,120]
[354747050,1740664245928,-500.0,0.00050684,120]
[354747051,1740664245937,-500.0,0.00050684,120]
[354747052,1740664245947,-187.34,0.00050684,120]
[354747053,1740664245956,-500.0,0.00050684,120]
[354747054,1740664245966,-500.0,0.00050684,120]
[354747055,1740664245976,-500.0,0.00050684,120]
[354747056,1740664245985,-295.43,0.00050684,120]
[354747057,1740664245994,-500.0,0.00050684,120]
[354747058,1740664246008,-75167.17,0.00050684,7]
[354747059,1740664246018,-527.56,0.00050684,120]
[354747060,1740664246027,-6084.84,0.00050684,120]
[354747061,1740664246037,-862.45,0.00050684,120]
[354747062,1740664246047,-500.0,0.00050684,120]
[354747063,1740664246057,-500.0,0.00050684,120]
[354747064,1740664246066,-1970.2,0.00050684,120]
[354747065,1740664246075,-500.0,0.00050684,120]
[354747066,1740664246084,-500.0,0.00050684,120]
[354747067,1740664246094,-2324.7,0.00050684,120]
[354747068,1740664246103,-904.92,0.00050684,120]
[354747069,1740664246112,-500.0,0.00050684,120]
[354747070,1740664246122,-500.0,0.00050684,120]
[354747071,1740664246131,-1516.7,0.00050684,120]
[354747072,1740664246141,-500.0,0.00050684,120]
[354747073,1740664246151,-2422.59,0.00050684,120]
[354747074,1740664246161,-696.65,0.00050684,120]
[354747075,1740664246171,-500.0,0.00050684,120]
[354747076,1740664246180,-898.12,0.00050684,120]
[354747077,1740664246190,-500.0,0.00050684,120]
[354747078,1740664246199,-500.0,0.00050684,120]
[354747079,1740664246209,-500.0,0.00050684,120]
[354747080,1740664246219,-500.0,0.00050684,120]
[354747081,1740664246229,-875.0,0.00050684,2]
[354747083,1740664246239,-3550.27,0.00050684,6]
[354747084,1740664246253,-712.67,0.00050684,120]
[354747085,1740664246264,-6851.14,0.00050684,120]
[354747086,1740664246273,-1875.0,0.00050684,120]
[354747087,1740664246284,-1885.888821,0.00050684,120]
[354747088,1740664246294,-1885.888821,0.00050684,120]
[354747089,1740664246304,-2365.65,0.00050684,120]
[354747090,1740664246315,-220.960089,0.00050684,120]
[354747091,1740664246326,-501.38,0.00050958,120]
[354747092,1740664246336,-1421.84,0.00050958,120]
[354747094,1740664246347,-500.0,0.00050958,120]
[354747101,1740664246461,-500.0,0.00050958,120]
[354747102,1740664246472,-500.0,0.00050958,120]
[354747103,1740664246482,-419.0,0.00050958,120]
[354747104,1740664246492,-500.0,0.00050958,120]
[354747105,1740664246505,-500.0,0.00050958,120]
[354747106,1740664246515,-500.0,0.00050958,120]
[354747107,1740664246525,-75167.17,0.00050958,7]
[354747108,1740664246535,-527.56,0.00050958,120]
[354747109,1740664246545,-6084.84,0.00050958,120]
[354747110,1740664246555,-862.45,0.00050958,120]
[354747111,1740664246564,-500.0,0.00050958,120]
[354747112,1740664246573,-500.0,0.00050958,120]
[354747113,1740664246583,-1970.2,0.00050958,120]
[354747114,1740664246592,-500.0,0.00050958,120]
[354747115,1740664246602,-500.0,0.00050958,120]
[354747116,1740664246611,-2324.7,0.00050958,120]
[354747117,1740664246621,-904.92,0.00050958,120]
[354747118,1740664246630,-500.0,0.00050958,120]
[354747119,1740664246639,-500.0,0.00050958,120]
[354747120,1740664246648,-1516.7,0.00050958,120]
[354747121,1740664246658,-500.0,0.00050958,120]
[354747122,1740664246667,-2422.59,0.00050958,120]
[354747123,1740664246677,-696.65,0.00050958,120]
[354747124,1740664246687,-500.0,0.00050958,120]
[354747125,1740664246696,-898.12,0.00050958,120]
[354747126,1740664246707,-500.0,0.00050958,120]
[354747127,1740664246717,-500.0,0.00050958,120]
[354747128,1740664246726,-500.0,0.00050958,120]
[354747129,1740664246736,-500.0,0.00050958,120]
[354747130,1740664246745,-875.0,0.00050958,2]
[354747131,1740664246759,-3550.27,0.00050958,6]
[354747132,1740664246769,-712.67,0.00050958,120]
[354747133,1740664246779,-6851.14,0.00050958,120]
[354747134,1740664246788,-1875.0,0.00050958,120]
[354747135,1740664246798,-1885.888821,0.00050958,120]
[354747136,1740664246808,-1885.888821,0.00050958,120]
[354747137,1740664246822,-2365.65,0.00050958,120]
[354747138,1740664246832,-6072.11,0.00051,120]
[354747139,1740664246842,-1650.0,0.00051,7]
[354747140,1740664246852,-4172.13887053,0.00051094,2]
[354747141,1740664246863,-324.45348936,0.00051153,120]
[354747142,1740664246872,-500.0,0.00051173,10]
[354747143,1740664246882,-500.0,0.00051173,10]
[354747144,1740664246892,-543.69142589,0.00051173,10]
[354747145,1740664246902,-151.0,0.0005119,30]
[354747146,1740664246913,-20000.0,0.00051193,41]
[354747147,1740664246922,-1163.9936881,0.00051194,33]
[354747148,1740664246932,-115447.02262482,0.00051194,33]
[354747149,1740664246942,-200.0,0.00051194,120]
[354747150,1740664246952,-195432.38194042,0.00051194,2]
[354747151,1740664246961,-428.867298,0.00051194,2]
[354747152,1740664246972,-151.0,0.00051194,30]
[354747153,1740664246982,-500.0,0.00051194,30]
[354747154,1740664246992,-1885.888821,0.00051194,120]
[354747155,1740664247006,-1885.888821,0.00051194,120]
[354747156,1740664247015,-1885.888821,0.00051194,120]
[354747157,1740664247025,-1885.888821,0.00051194,120]
[354747158,1740664247034,-300.0,0.000512,28]
[354747159,1740664247044,-501.38,0.00051232,120]
[354747160,1740664247054,-1421.84,0.00051232,120]
[354747161,1740664247064,-500.0,0.00051232,120]
[354747162,1740664247074,-500.0,0.00051232,120]
[354747163,1740664247083,-500.0,0.00051232,120]
[354747164,1740664247093,-500.0,0.00051232,120]
[354747165,1740664247103,-500.0,0.00051232,120]
[354747166,1740664247112,-500.0,0.00051232,120]
[354747167,1740664247122,-75167.17,0.00051232,7]
[354747168,1740664247132,-527.56,0.00051232,120]
[354747169,1740664247142,-6084.84,0.00051232,120]
[354747170,1740664247152,-862.45,0.00051232,120]
[354747171,1740664247162,-500.0,0.00051232,120]
[354747172,1740664247172,-500.0,0.00051232,120]
[354747173,1740664247185,-1970.2,0.00051232,120]